[Event "Early-Titled-Tuesday-Blitz-March-05-2024"]
[Site "Chess.com"]
[Date "2024.03.05"]
[Round "10"]
[White "ckgchess"]
[Black "Byniolus"]
[Result "1-0"]
[WhiteElo "2914"]
[BlackElo "2806"]
[TimeControl "180+1"]
[EndTime "9:59:02 PST"]
[Termination "ckgchess won by resignation"]

1. e4 {[%clk 0:03:00.9]} 1... d6 {[%clk 0:02:59.7]} 2. d4 {[%clk 0:03:00.8]}
2... Nf6 {[%clk 0:03:00.6]} 3. Nc3 {[%clk 0:03:01]} 3... c6 {[%clk 0:03:01.2]}
4. Nf3 {[%clk 0:02:59.3]} 4... Bg4 {[%clk 0:03:00.9]} 5. h3 {[%clk 0:02:59.6]}
5... Bh5 {[%clk 0:03:01]} 6. Bg5 {[%clk 0:02:51.6]} 6... h6 {[%clk 0:02:53.6]}
7. Bxf6 {[%clk 0:02:48.8]} 7... gxf6 {[%clk 0:02:47.4]} 8. g4 {[%clk 0:02:48.7]}
8... Bg6 {[%clk 0:02:47.5]} 9. Qd2 {[%clk 0:02:39]} 9... e6 {[%clk 0:02:47.6]}
10. O-O-O {[%clk 0:02:33.9]} 10... h5 {[%clk 0:02:46.1]} 11. Nh4 {[%clk
0:02:31.4]} 11... Bh6 {[%clk 0:02:42.9]} 12. f4 {[%clk 0:02:31.6]} 12... Nd7
{[%clk 0:02:18.5]} 13. Kb1 {[%clk 0:02:27.3]} 13... e5 {[%clk 0:02:15.5]} 14.
dxe5 {[%clk 0:01:36.1]} 14... dxe5 {[%clk 0:02:14.7]} 15. Nxg6 {[%clk
0:01:34.3]} 15... fxg6 {[%clk 0:02:15.6]} 16. Qd6 {[%clk 0:01:18.1]} 16... Bxf4
{[%clk 0:02:01.3]} 17. gxh5 {[%clk 0:01:18.1]} 17... g5 {[%clk 0:01:36.8]} 18.
Be2 {[%clk 0:00:49.5]} 18... Qe7 {[%clk 0:01:36.8]} 19. Bg4 {[%clk 0:00:36.4]}
19... Nb6 {[%clk 0:01:32.1]} 20. Qd3 {[%clk 0:00:34.3]} 20... Rd8 {[%clk
0:01:26.2]} 21. Qe2 {[%clk 0:00:35]} 21... Rd4 {[%clk 0:01:25.7]} 22. Bf5 {[%clk
0:00:28.9]} 22... Qb4 {[%clk 0:01:10.5]} 23. Rxd4 {[%clk 0:00:23.8]} 23... exd4
{[%clk 0:01:09.7]} 24. Nd1 {[%clk 0:00:24.6]} 24... Nc4 {[%clk 0:01:07.2]} 25.
Qd3 {[%clk 0:00:20.3]} 25... Ne5 {[%clk 0:00:58.4]} 26. Qe2 {[%clk 0:00:18]}
26... c5 {[%clk 0:00:52.5]} 27. h4 {[%clk 0:00:16.6]} 27... c4 {[%clk
0:00:49.1]} 28. hxg5 {[%clk 0:00:17.2]} 28... fxg5 {[%clk 0:00:50]} 29. h6
{[%clk 0:00:17.2]} 29... Ke7 {[%clk 0:00:46.9]} 30. h7 {[%clk 0:00:17.4]} 30...
c3 {[%clk 0:00:32.2]} 31. a3 {[%clk 0:00:07.6]} 31... Qc4 {[%clk 0:00:21.6]} 32.
Qxc4 {[%clk 0:00:05.6]} 32... Nxc4 {[%clk 0:00:22.5]} 33. bxc3 {[%clk
0:00:06.2]} 33... dxc3 {[%clk 0:00:19.1]} 34. Nxc3 {[%clk 0:00:07.1]} 34... Ne3
{[%clk 0:00:19.9]} 35. Nd5+ {[%clk 0:00:06.3]} 35... Nxd5 {[%clk 0:00:20.4]} 36.
exd5 {[%clk 0:00:07.2]} 36... Kd6 {[%clk 0:00:21.3]} 37. c4 {[%clk 0:00:07]}
37... b5 {[%clk 0:00:18.9]} 38. cxb5 {[%clk 0:00:06.4]} 38... Kxd5 {[%clk
0:00:19.8]} 39. a4 {[%clk 0:00:05.9]} 39... Ke5 {[%clk 0:00:20.2]} 40. Bg4
{[%clk 0:00:05.7]} 40... Kf6 {[%clk 0:00:19.9]} 41. Kc2 {[%clk 0:00:05.7]} 41...
Be5 {[%clk 0:00:18.7]} 42. Kd3 {[%clk 0:00:04.7]} 42... Kg6 {[%clk 0:00:18.9]}
43. Ke4 {[%clk 0:00:04.8]} 43... Bg7 {[%clk 0:00:13.9]} 44. Bf5+ {[%clk
0:00:05]} 44... Kf6 {[%clk 0:00:14.6]} 45. Rf1 {[%clk 0:00:05]} 45... Re8+
{[%clk 0:00:11.9]} 46. Kd3 {[%clk 0:00:05.6]} 46... Rd8+ {[%clk 0:00:10.8]} 47.
Kc4 {[%clk 0:00:06]} 47... Ke5 {[%clk 0:00:11]} 48. Bb1 {[%clk 0:00:05.3]} 48...
g4 {[%clk 0:00:07.6]} 49. Rf5+ {[%clk 0:00:05.4]} 49... Ke6 {[%clk 0:00:08.1]}
50. Rg5 {[%clk 0:00:06.3]} 50... Rd4+ {[%clk 0:00:03.7]} 51. Kb3 {[%clk
0:00:06.9]} 51... Bf6 {[%clk 0:00:01.8]} 52. Rg6 {[%clk 0:00:07.6]} 52... Rd8
{[%clk 0:00:02]} 53. Rg8 {[%clk 0:00:08.1]} 53... Ke7 {[%clk 0:00:01.1]} 54.
Rxg4 {[%clk 0:00:07.4]} 54... Rh8 {[%clk 0:00:01.4]} 55. Rg8 {[%clk 0:00:07.5]}
55... Kd6 {[%clk 0:00:01.4]} 56. Kc4 {[%clk 0:00:07]} 56... Be5 {[%clk
0:00:02.3]} 57. Bg6 {[%clk 0:00:06.8]} 57... Kc7 {[%clk 0:00:02.6]} 58. Kd5
{[%clk 0:00:06.9]} 58... Bc3 {[%clk 0:00:03.1]} 59. Ke6 {[%clk 0:00:07.3]} 59...
Kb6 {[%clk 0:00:02.9]} 60. Kf7 {[%clk 0:00:07.5]} 60... Ka5 {[%clk 0:00:03.6]}
61. Bc2 {[%clk 0:00:08]} 61... Kb4 {[%clk 0:00:02.5]} 62. Rxh8 {[%clk
0:00:05.1]} 62... Bxh8 {[%clk 0:00:03.4]} 63. Kg8 {[%clk 0:00:05.7]} 63... Bc3
{[%clk 0:00:04.3]} 64. h8=Q {[%clk 0:00:06]} 64... Bxh8 {[%clk 0:00:05]} 65.
Kxh8 {[%clk 0:00:06.9]} 1-0

[Event "Early-Titled-Tuesday-Blitz-March-05-2024"]
[Site "Chess.com"]
[Date "2024.03.05"]
[Round "10"]
[White "pr1105"]
[Black "Rawnsdale"]
[Result "1-0"]
[WhiteElo "2378"]
[BlackElo "2489"]
[TimeControl "180+1"]
[EndTime "9:59:05 PST"]
[Termination "pr1105 won by resignation"]

1. e4 {[%clk 0:02:57]} 1... c6 {[%clk 0:02:56.4]} 2. d4 {[%clk 0:02:56.8]} 2...
d5 {[%clk 0:02:56.8]} 3. e5 {[%clk 0:02:57.7]} 3... c5 {[%clk 0:02:57.7]} 4. Nf3
{[%clk 0:02:57.8]} 4... Nc6 {[%clk 0:02:55.4]} 5. dxc5 {[%clk 0:02:58.2]} 5...
Bg4 {[%clk 0:02:53]} 6. Bb5 {[%clk 0:02:57.2]} 6... e6 {[%clk 0:02:53.3]} 7. h3
{[%clk 0:02:51.7]} 7... Bh5 {[%clk 0:02:50.5]} 8. Be3 {[%clk 0:02:47.3]} 8...
Ne7 {[%clk 0:02:38.9]} 9. g4 {[%clk 0:02:44.7]} 9... Bg6 {[%clk 0:02:38.2]} 10.
c3 {[%clk 0:02:44.2]} 10... h5 {[%clk 0:02:32.9]} 11. Rg1 {[%clk 0:02:33.7]}
11... Qc7 {[%clk 0:02:04.3]} 12. Nbd2 {[%clk 0:02:11.3]} 12... O-O-O {[%clk
0:01:49.5]} 13. Bd4 {[%clk 0:02:04.5]} 13... Be4 {[%clk 0:01:43.9]} 14. Qe2
{[%clk 0:02:00.5]} 14... hxg4 {[%clk 0:01:42.6]} 15. hxg4 {[%clk 0:02:00.6]}
15... Nxd4 {[%clk 0:01:37]} 16. cxd4 {[%clk 0:01:55.5]} 16... Ng6 {[%clk
0:01:35.7]} 17. b4 {[%clk 0:01:32.6]} 17... Bxf3 {[%clk 0:01:09.5]} 18. Qxf3
{[%clk 0:01:25.3]} 18... Nxe5 {[%clk 0:00:56.9]} 19. Qg3 {[%clk 0:01:06]} 19...
Ng6 {[%clk 0:00:50.8]} 20. Bd3 {[%clk 0:00:59.2]} 20... Qxg3 {[%clk 0:00:48.4]}
21. fxg3 {[%clk 0:01:00.1]} 21... e5 {[%clk 0:00:45]} 22. Bxg6 {[%clk 0:00:57]}
22... fxg6 {[%clk 0:00:44.5]} 23. dxe5 {[%clk 0:00:57.2]} 23... b6 {[%clk
0:00:23.7]} 24. Rc1 {[%clk 0:00:42.6]} 24... bxc5 {[%clk 0:00:23.8]} 25. bxc5
{[%clk 0:00:43.5]} 25... Be7 {[%clk 0:00:22.5]} 26. Nf3 {[%clk 0:00:40.2]} 26...
Rhf8 {[%clk 0:00:22.6]} 27. Ke2 {[%clk 0:00:40.2]} 27... d4 {[%clk 0:00:22.3]}
28. Rgd1 {[%clk 0:00:37.1]} 28... d3+ {[%clk 0:00:22]} 29. Ke3 {[%clk
0:00:32.2]} 29... Kc7 {[%clk 0:00:16.1]} 30. Rc3 {[%clk 0:00:29.3]} 30... Kc6
{[%clk 0:00:15]} 31. Rdxd3 {[%clk 0:00:25.8]} 31... Rxd3+ {[%clk 0:00:13.1]} 32.
Rxd3 {[%clk 0:00:24]} 32... Bxc5+ {[%clk 0:00:13.3]} 33. Ke4 {[%clk 0:00:22.3]}
33... Rb8 {[%clk 0:00:11.6]} 34. e6 {[%clk 0:00:18.6]} 34... Bd6 {[%clk
0:00:07]} 35. Ne5+ {[%clk 0:00:17.1]} 35... Kc7 {[%clk 0:00:06.5]} 36. Nxg6
{[%clk 0:00:14.4]} 36... Rb4+ {[%clk 0:00:06.3]} 37. Kf5 {[%clk 0:00:11.1]}
37... Rb5+ {[%clk 0:00:06.8]} 38. Ke4 {[%clk 0:00:10.9]} 38... Rb4+ {[%clk
0:00:07.4]} 39. Kf3 {[%clk 0:00:09.9]} 39... Rb8 {[%clk 0:00:03.8]} 40. Rc3+
{[%clk 0:00:07.2]} 40... Kd8 {[%clk 0:00:03.8]} 41. Rd3 {[%clk 0:00:06.9]} 41...
Rb6 {[%clk 0:00:04.1]} 42. Ke4 {[%clk 0:00:06.1]} 42... Ke8 {[%clk 0:00:04.5]}
43. Kd5 {[%clk 0:00:05.3]} 43... Be7 {[%clk 0:00:04.4]} 44. Rc3 {[%clk
0:00:03.6]} 44... Rb5+ {[%clk 0:00:04.7]} 45. Ke4 {[%clk 0:00:04.1]} 45... Rb8
{[%clk 0:00:04.7]} 46. Nxe7 {[%clk 0:00:03.6]} 46... Kxe7 {[%clk 0:00:05]} 47.
Rc7+ {[%clk 0:00:04.5]} 47... Kxe6 {[%clk 0:00:05.6]} 48. Rxg7 {[%clk 0:00:05]}
48... Rb4+ {[%clk 0:00:05.6]} 49. Kf3 {[%clk 0:00:05.7]} 49... Ra4 {[%clk
0:00:06.5]} 50. Rg6+ {[%clk 0:00:05.8]} 50... Kf7 {[%clk 0:00:06.7]} 51. Rg5
{[%clk 0:00:06.1]} 51... Ra3+ {[%clk 0:00:07.2]} 52. Kf4 {[%clk 0:00:06.4]}
52... Rxa2 {[%clk 0:00:08.1]} 53. Rb5 {[%clk 0:00:06.9]} 53... a5 {[%clk
0:00:08.2]} 54. g5 {[%clk 0:00:07.2]} 54... a4 {[%clk 0:00:08.4]} 55. Kf5 {[%clk
0:00:06.5]} 55... Rf2+ {[%clk 0:00:08.1]} 56. Kg4 {[%clk 0:00:07.1]} 56... a3
{[%clk 0:00:08.5]} 57. Ra5 {[%clk 0:00:07.8]} 57... a2 {[%clk 0:00:08.8]} 58.
Ra7+ {[%clk 0:00:08.1]} 58... Kg6 {[%clk 0:00:09.1]} 59. Ra6+ {[%clk 0:00:08.8]}
59... Kf7 {[%clk 0:00:09]} 60. g6+ {[%clk 0:00:09.1]} 60... Kg7 {[%clk
0:00:09.2]} 61. Kg5 {[%clk 0:00:09.2]} 61... Kg8 {[%clk 0:00:07.5]} 62. g4
{[%clk 0:00:09.7]} 62... Rc2 {[%clk 0:00:07]} 63. Ra8+ {[%clk 0:00:09.4]} 63...
Kg7 {[%clk 0:00:07.2]} 64. Ra7+ {[%clk 0:00:10.3]} 64... Kg8 {[%clk 0:00:07.3]}
65. g7 {[%clk 0:00:10.5]} 65... Rc5+ {[%clk 0:00:06.9]} 66. Kh6 {[%clk
0:00:10.4]} 66... Rc6+ {[%clk 0:00:07]} 67. Kh5 {[%clk 0:00:09.9]} 67... Rc5+
{[%clk 0:00:07.5]} 68. g5 {[%clk 0:00:10.1]} 68... Rc2 {[%clk 0:00:07.9]} 69.
Kh6 {[%clk 0:00:09.2]} 69... Rh2+ {[%clk 0:00:07.8]} 70. Kg6 {[%clk 0:00:09.7]}
70... a1=Q {[%clk 0:00:02.8]} 71. Rxa1 {[%clk 0:00:10.6]} 71... Rh6+ {[%clk
0:00:02.7]} 72. Kxh6 {[%clk 0:00:08.9]} 1-0

[Event "Early-Titled-Tuesday-Blitz-March-05-2024"]
[Site "Chess.com"]
[Date "2024.03.05"]
[Round "10"]
[White "kyuotbi"]
[Black "SergioMoralesG"]
[Result "0-1"]
[WhiteElo "2303"]
[BlackElo "2481"]
[TimeControl "180+1"]
[EndTime "9:59:07 PST"]
[Termination "SergioMoralesG won on time"]

1. e4 {[%clk 0:03:00.9]} 1... c5 {[%clk 0:02:58.6]} 2. Nf3 {[%clk 0:03:00.6]}
2... e6 {[%clk 0:02:59.2]} 3. d4 {[%clk 0:03:00.3]} 3... cxd4 {[%clk 0:03:00.1]}
4. Nxd4 {[%clk 0:03:00.5]} 4... Nc6 {[%clk 0:03:00.8]} 5. Nc3 {[%clk 0:02:50.4]}
5... Qc7 {[%clk 0:03:00.8]} 6. f4 {[%clk 0:02:50.3]} 6... a6 {[%clk 0:02:59.8]}
7. Nxc6 {[%clk 0:02:49.7]} 7... bxc6 {[%clk 0:02:59.4]} 8. Bd3 {[%clk
0:02:48.6]} 8... d5 {[%clk 0:02:56.4]} 9. O-O {[%clk 0:02:44.9]} 9... Nf6 {[%clk
0:02:56.5]} 10. e5 {[%clk 0:02:44.2]} 10... Nd7 {[%clk 0:02:56.7]} 11. Qe2
{[%clk 0:02:41.8]} 11... Be7 {[%clk 0:02:55.9]} 12. Bd2 {[%clk 0:02:38.8]} 12...
Nc5 {[%clk 0:02:53.2]} 13. Kh1 {[%clk 0:02:36.6]} 13... Nxd3 {[%clk 0:02:50.5]}
14. cxd3 {[%clk 0:02:36.7]} 14... O-O {[%clk 0:02:50]} 15. Rac1 {[%clk
0:02:33.8]} 15... Rb8 {[%clk 0:02:37.7]} 16. b3 {[%clk 0:02:31.9]} 16... a5
{[%clk 0:02:35.8]} 17. d4 {[%clk 0:02:30.6]} 17... Qa7 {[%clk 0:02:31.3]} 18.
Qf2 {[%clk 0:02:25.9]} 18... Ba6 {[%clk 0:02:27.6]} 19. Rfe1 {[%clk 0:02:24.8]}
19... c5 {[%clk 0:02:28.2]} 20. Be3 {[%clk 0:02:17.4]} 20... Rfc8 {[%clk
0:02:21.3]} 21. f5 {[%clk 0:02:13.5]} 21... cxd4 {[%clk 0:02:15.2]} 22. Bxd4
{[%clk 0:02:13.5]} 22... Bc5 {[%clk 0:02:15.8]} 23. Bxc5 {[%clk 0:02:05.6]}
23... Qxc5 {[%clk 0:02:14.5]} 24. Qf4 {[%clk 0:02:05.9]} 24... Qb4 {[%clk
0:01:31.6]} 25. Qg3 {[%clk 0:01:59.4]} 25... d4 {[%clk 0:01:19.9]} 26. f6 {[%clk
0:01:52.6]} 26... g6 {[%clk 0:01:12.7]} 27. Ne4 {[%clk 0:01:50.9]} 27... Rxc1
{[%clk 0:01:12.6]} 28. Rxc1 {[%clk 0:01:50.8]} 28... d3 {[%clk 0:01:10.7]} 29.
Qe3 {[%clk 0:01:44.7]} 29... Rd8 {[%clk 0:01:00.1]} 30. Nd6 {[%clk 0:01:38.8]}
30... Qh4 {[%clk 0:00:39.8]} 31. g3 {[%clk 0:01:26]} 31... Qh5 {[%clk
0:00:31.3]} 32. Qb6 {[%clk 0:01:20.4]} 32... Qf3+ {[%clk 0:00:21.8]} 33. Kg1
{[%clk 0:01:20.2]} 33... Rf8 {[%clk 0:00:20.3]} 34. Rf1 {[%clk 0:01:14.5]} 34...
Qxf1+ {[%clk 0:00:15.3]} 35. Kxf1 {[%clk 0:01:11.9]} 35... d2+ {[%clk
0:00:16.2]} 36. Qxa6 {[%clk 0:01:12.2]} 36... d1=Q+ {[%clk 0:00:17.1]} 37. Kg2
{[%clk 0:01:12.5]} 37... Qd5+ {[%clk 0:00:16.8]} 38. Kg1 {[%clk 0:00:54.5]}
38... Qxe5 {[%clk 0:00:17.7]} 39. Nc4 {[%clk 0:00:50.9]} 39... Qd4+ {[%clk
0:00:12.7]} 40. Kg2 {[%clk 0:00:50.6]} 40... Qxf6 {[%clk 0:00:12.3]} 41. Qxa5
{[%clk 0:00:50.6]} 41... Rd8 {[%clk 0:00:11.9]} 42. Qe1 {[%clk 0:00:43.9]} 42...
Kg7 {[%clk 0:00:11.6]} 43. a4 {[%clk 0:00:43.1]} 43... Qd4 {[%clk 0:00:09.4]}
44. a5 {[%clk 0:00:39.4]} 44... Qd5+ {[%clk 0:00:09.5]} 45. Kg1 {[%clk
0:00:33.4]} 45... Rb8 {[%clk 0:00:10.4]} 46. Qc3+ {[%clk 0:00:29]} 46... f6
{[%clk 0:00:08.9]} 47. a6 {[%clk 0:00:26]} 47... Qc5+ {[%clk 0:00:08.7]} 48. Kf1
{[%clk 0:00:23.1]} 48... Ra8 {[%clk 0:00:08.6]} 49. Qa1 {[%clk 0:00:16.3]} 49...
Qb5 {[%clk 0:00:05.4]} 50. Qe1 {[%clk 0:00:09.5]} 50... Rxa6 {[%clk 0:00:04.7]}
51. Kg2 {[%clk 0:00:06.4]} 51... Qd5+ {[%clk 0:00:04.6]} 52. Kg1 {[%clk
0:00:05.4]} 52... Rc6 {[%clk 0:00:05.3]} 53. Qe3 {[%clk 0:00:04.5]} 53... Qc5
{[%clk 0:00:05.4]} 54. Qxc5 {[%clk 0:00:03.8]} 54... Rxc5 {[%clk 0:00:06.3]} 55.
Kf2 {[%clk 0:00:04.5]} 55... Rb5 {[%clk 0:00:06.8]} 56. Nd2 {[%clk 0:00:03.7]}
56... Kf7 {[%clk 0:00:07.2]} 57. Ke3 {[%clk 0:00:04.2]} 57... Ke7 {[%clk
0:00:07.8]} 58. Kd3 {[%clk 0:00:04.7]} 58... e5 {[%clk 0:00:08.2]} 59. Kc4
{[%clk 0:00:05.2]} 59... Rb8 {[%clk 0:00:08.6]} 60. Nf3 {[%clk 0:00:04.1]} 60...
Rc8+ {[%clk 0:00:09.5]} 61. Kd5 {[%clk 0:00:03.8]} 61... Rd8+ {[%clk 0:00:09.2]}
62. Ke4 {[%clk 0:00:03.2]} 62... Ke6 {[%clk 0:00:10.1]} 63. g4 {[%clk
0:00:02.7]} 63... f5+ {[%clk 0:00:10.1]} 64. gxf5+ {[%clk 0:00:02.6]} 64...
gxf5+ {[%clk 0:00:11]} 65. Ke3 {[%clk 0:00:03.2]} 65... Rb8 {[%clk 0:00:11.9]}
66. Nd2 {[%clk 0:00:02.7]} 66... Kd5 {[%clk 0:00:12.4]} 67. h4 {[%clk
0:00:01.5]} 67... f4+ {[%clk 0:00:12.8]} 0-1

[Event "Early-Titled-Tuesday-Blitz-March-05-2024"]
[Site "Chess.com"]
[Date "2024.03.05"]
[Round "10"]
[White "HanSchut"]
[Black "crazy_m_attack"]
[Result "0-1"]
[WhiteElo "2323"]
[BlackElo "2485"]
[TimeControl "180+1"]
[EndTime "9:59:13 PST"]
[Termination "crazy_m_attack won by checkmate"]

1. e4 {[%clk 0:03:00.9]} 1... e5 {[%clk 0:02:55.8]} 2. Nf3 {[%clk 0:03:00.4]}
2... Nc6 {[%clk 0:02:56.3]} 3. Bc4 {[%clk 0:03:01]} 3... Nf6 {[%clk 0:02:56]} 4.
d4 {[%clk 0:03:01.4]} 4... exd4 {[%clk 0:02:55.8]} 5. e5 {[%clk 0:03:02.3]} 5...
Ng4 {[%clk 0:02:53.7]} 6. O-O {[%clk 0:03:00.5]} 6... Be7 {[%clk 0:02:51.3]} 7.
Re1 {[%clk 0:02:56.4]} 7... d6 {[%clk 0:02:51.2]} 8. exd6 {[%clk 0:02:42.9]}
8... Qxd6 {[%clk 0:02:52.1]} 9. h3 {[%clk 0:02:42.8]} 9... Nf6 {[%clk
0:02:47.8]} 10. Na3 {[%clk 0:02:39.5]} 10... a6 {[%clk 0:02:45.8]} 11. Bd3
{[%clk 0:02:32.6]} 11... O-O {[%clk 0:02:43]} 12. Nc4 {[%clk 0:02:32.5]} 12...
Qd8 {[%clk 0:02:37.6]} 13. Bf4 {[%clk 0:02:27]} 13... Be6 {[%clk 0:02:36.4]} 14.
a3 {[%clk 0:02:13.8]} 14... h6 {[%clk 0:02:24]} 15. Qd2 {[%clk 0:02:13.5]} 15...
Re8 {[%clk 0:01:57.1]} 16. Re2 {[%clk 0:02:00.6]} 16... Bf8 {[%clk 0:01:49.8]}
17. Rae1 {[%clk 0:01:57.6]} 17... Nd5 {[%clk 0:01:46.6]} 18. Bg3 {[%clk
0:01:50.3]} 18... b5 {[%clk 0:01:40.8]} 19. Nce5 {[%clk 0:01:48.2]} 19... Nxe5
{[%clk 0:01:41.2]} 20. Nxe5 {[%clk 0:01:30.9]} 20... c5 {[%clk 0:01:39]} 21. Be4
{[%clk 0:01:11.7]} 21... Rc8 {[%clk 0:01:34.8]} 22. Bf3 {[%clk 0:00:48.7]} 22...
Bd6 {[%clk 0:01:12.7]} 23. Bxd5 {[%clk 0:00:34.2]} 23... Bxd5 {[%clk 0:01:13.6]}
24. f4 {[%clk 0:00:30.2]} 24... Qc7 {[%clk 0:01:03.1]} 25. Kh2 {[%clk
0:00:30.4]} 25... Re7 {[%clk 0:00:59.7]} 26. Bh4 {[%clk 0:00:27.8]} 26... Re6
{[%clk 0:00:53.7]} 27. Bg3 {[%clk 0:00:23.1]} 27... Rce8 {[%clk 0:00:53.2]} 28.
Qd3 {[%clk 0:00:21.7]} 28... f6 {[%clk 0:00:33.1]} 29. Ng4 {[%clk 0:00:19.8]}
29... Bxf4 {[%clk 0:00:24.7]} 30. Bxf4 {[%clk 0:00:06.4]} 30... Qxf4+ {[%clk
0:00:25.6]} 31. Kg1 {[%clk 0:00:06.6]} 31... h5 {[%clk 0:00:17.7]} 32. Rxe6
{[%clk 0:00:06]} 32... Rxe6 {[%clk 0:00:16.7]} 33. Rxe6 {[%clk 0:00:05.6]} 33...
Bxe6 {[%clk 0:00:17.6]} 34. Nf2 {[%clk 0:00:06.1]} 34... Bf5 {[%clk 0:00:06.3]}
35. Qe2 {[%clk 0:00:06.3]} 35... Qe3 {[%clk 0:00:04.3]} 36. Kf1 {[%clk
0:00:04.8]} 36... Be6 {[%clk 0:00:03.3]} 37. Nd1 {[%clk 0:00:03.8]} 37... Qf4+
{[%clk 0:00:02.4]} 38. Qf2 {[%clk 0:00:03.9]} 38... Qxf2+ {[%clk 0:00:01.7]} 39.
Kxf2 {[%clk 0:00:04.3]} 39... Bd5 {[%clk 0:00:02.2]} 40. g3 {[%clk 0:00:04]}
40... Kf7 {[%clk 0:00:02.7]} 41. h4 {[%clk 0:00:04.6]} 41... g5 {[%clk 0:00:03]}
42. Ke2 {[%clk 0:00:05.2]} 42... Kg7 {[%clk 0:00:03.2]} 43. Kf2 {[%clk 0:00:05]}
43... Kg6 {[%clk 0:00:03.8]} 44. Kf1 {[%clk 0:00:03.7]} 44... Kf5 {[%clk
0:00:04.4]} 45. Nf2 {[%clk 0:00:03.7]} 45... Be4 {[%clk 0:00:03.2]} 46. hxg5
{[%clk 0:00:04]} 46... fxg5 {[%clk 0:00:03.2]} 47. c3 {[%clk 0:00:04.4]} 47...
d3 {[%clk 0:00:02.8]} 48. Ke1 {[%clk 0:00:04.3]} 48... c4 {[%clk 0:00:03.1]} 49.
Kd2 {[%clk 0:00:04.5]} 49... h4 {[%clk 0:00:03.6]} 50. gxh4 {[%clk 0:00:04.6]}
50... gxh4 {[%clk 0:00:04.5]} 51. Ke3 {[%clk 0:00:05.2]} 51... Bg2 {[%clk
0:00:04.8]} 52. Nd1 {[%clk 0:00:03]} 52... h3 {[%clk 0:00:04.7]} 53. Kf2 {[%clk
0:00:03.9]} 53... Ke4 {[%clk 0:00:02.3]} 54. Ne3 {[%clk 0:00:04]} 54... d2
{[%clk 0:00:02.5]} 55. Nd1 {[%clk 0:00:04.5]} 55... Kd3 {[%clk 0:00:02.7]} 56.
Kg1 {[%clk 0:00:04]} 56... Ke2 {[%clk 0:00:02.6]} 57. Nf2 {[%clk 0:00:04.9]}
57... d1=Q+ {[%clk 0:00:02.6]} 58. Nxd1 {[%clk 0:00:05.8]} 58... Kxd1 {[%clk
0:00:03.4]} 59. b4 {[%clk 0:00:06.4]} 59... Kc2 {[%clk 0:00:03.6]} 60. a4 {[%clk
0:00:06.6]} 60... Kxc3 {[%clk 0:00:04]} 61. axb5 {[%clk 0:00:07.5]} 61... axb5
{[%clk 0:00:04.7]} 62. Kh2 {[%clk 0:00:07.1]} 62... Kxb4 {[%clk 0:00:04.7]} 63.
Kg1 {[%clk 0:00:08]} 63... c3 {[%clk 0:00:05.3]} 64. Kh2 {[%clk 0:00:08.9]}
64... c2 {[%clk 0:00:05.9]} 65. Kg1 {[%clk 0:00:09.8]} 65... c1=Q+ {[%clk
0:00:06.4]} 66. Kh2 {[%clk 0:00:10.7]} 66... Qf4+ {[%clk 0:00:06.6]} 67. Kg1
{[%clk 0:00:11.2]} 67... Qf1+ {[%clk 0:00:05.2]} 68. Kh2 {[%clk 0:00:11.5]}
68... Qh1+ {[%clk 0:00:05.4]} 69. Kg3 {[%clk 0:00:12]} 69... Qg1 {[%clk
0:00:05.8]} 70. Kh4 {[%clk 0:00:11.7]} 70... h2 {[%clk 0:00:05.5]} 71. Kg5
{[%clk 0:00:10.9]} 71... h1=Q {[%clk 0:00:05.5]} 72. Kf6 {[%clk 0:00:11.8]}
72... Qh8+ {[%clk 0:00:05]} 73. Ke7 {[%clk 0:00:12.7]} 73... Qc5+ {[%clk
0:00:04.6]} 74. Kd7 {[%clk 0:00:12.1]} 74... Qh7+ {[%clk 0:00:04.4]} 75. Ke8
{[%clk 0:00:11.5]} 75... Qc8# {[%clk 0:00:03.8]} 0-1